Workbook

Sheet Sheriffs and Deputies
A2: Measurement Date: 6/30/2015
A3: Membership Goup: Sheriffs and Deputies
H4: DEFERRED OUTFLOWS OF RESOURCES | M4: DEFERRED INFLOWS OF RESOURCES
H5: (Excluding Employer Specific Amounts)* | M5: (Excluding Employer Specific Amounts) *
A6: Employer ID # | B6: Employer Name | C6: 2020 Actual Employer Contributions | D6: Employer Allocation Percentage ** | E6: Net Pension Liability (NPL)/ (Asset) | F6: Change in NPL due to 1% Decrease in the Actuarial Assumed Investment Return (6.00 %) | G6: Change in NPL due to 1% Increase in the Actuarial Assumed Investment Return (8.00%) | H6: Differences Between Expected and Actual Experience | I6: Changes of Assumptions | J6: Difference Between Projected and Actual Investment Earnings on Pension Plan Investments | K6: Total Deferred Outflows of Resources | M6: Differences Between Expected and Actual Experience | N6: Changes of Assumptions | O6: Difference Between Projected and Actual Investment Earnings on Pension Plan Investments | P6: Total Deferred Inflows of Resources | Q6: Total Proportionate Share of Allocable Plan Pension Expense
C7: 11608639.2 | D7: 1 | E7: 16301722 | F7: 111893883 | G7: -63812992 | H7: 824104 | I7: 6677095 | J7: 22849318 | K7: =+H7+I7+J7 -> 30350517 | M7: 1799686 | N7: 11782737 | O7: 13088564 | P7: =+M7+N7+O7 -> 26670987 | Q7: 10922925
A8: 01201 | B8: ADAIR COUNTY | C8: 36923.12 | D8: =+C8/$C$108 -> 0.003180658763 | E8: =ROUND(D8*$E$7,0) -> 51850 | F8: =ROUND(D8*$F$7,0) -> 355896 | G8: =ROUND(D8*$G$7,0) -> -202967 | H8: =ROUND(D8*$H$7,0) -> 2621 | I8: =ROUND(D8*$I$7,0) -> 21238 | J8: =ROUND(D8*$J$7,0) -> 72676 | K8: =ROUND(SUM(H8:J8),0) -> 96535 | M8: =ROUND(D8*$M$7,0) -> 5724 | N8: =ROUND(D8*$N$7,0) -> 37477 | O8: =ROUND(D8*$O$7,0) -> 41630 | P8: =ROUND(SUM(M8:O8),0) -> 84831 | Q8: =ROUND(D8*$Q$7,0) -> 34742
A9: 02201 | B9: ADAMS COUNTY | C9: 44720.82 | D9: =+C9/$C$108 -> 0.003852374015 | E9: =ROUND(D9*$E$7,0) -> 62800 | F9: =ROUND(D9*$F$7,0) -> 431057 | G9: =ROUND(D9*$G$7,0) -> -245832 | H9: =ROUND(D9*$H$7,0) -> 3175 | I9: =ROUND(D9*$I$7,0) -> 25723 | J9: =ROUND(D9*$J$7,0) -> 88024 | K9: =ROUND(SUM(H9:J9),0) -> 116922 | M9: =ROUND(D9*$M$7,0) -> 6933 | N9: =ROUND(D9*$N$7,0) -> 45392 | O9: =ROUND(D9*$O$7,0) -> 50422 | P9: =ROUND(SUM(M9:O9),0) -> 102747 | Q9: =ROUND(D9*$Q$7,0) -> 42079
A10: 03201 | B10: ALLAMAKEE COUNTY | C10: 64570.59 | D10: 0.005562287611 | E10: 90675 | F10: 622386 | G10: -354946 | H10: 4584 | I10: 37140 | J10: 127094 | K10: 168818 | M10: 10010 | N10: 65539 | O10: 72802 | P10: 148351 | Q10: 60756
A11: 04208 | B11: APPANOOSE COUNTY SHERIFF'S DEPT | C11: 51343.58 | D11: 0.004422876714 | E11: 72101 | F11: 494893 | G11: -282237 | H11: 3645 | I11: 29532 | J11: 101060 | K11: 134237 | M11: 7960 | N11: 52114 | O11: 57889 | P11: 117963 | Q11: 48311
A12: 05201 | B12: AUDUBON COUNTY | C12: 32061.18 | D12: 0.002761837925 | E12: 45023 | F12: 309033 | G12: -176241 | H12: 2276 | I12: 18441 | J12: 63106 | K12: 83823 | M12: 4970 | N12: 32542 | O12: 36148 | P12: 73660 | Q12: 30167
A13: 06201 | B13: BENTON COUNTY | C13: 91094.39 | D13: 0.007847120445 | E13: 127922 | F13: 878045 | G13: -500748 | H13: 6467 | I13: 52396 | J13: 179301 | K13: 238164 | M13: 14122 | N13: 92461 | O13: 102708 | P13: 209291 | Q13: 85714
A14: 07201 | B14: BLACK HAWK COUNTY | C14: 495068.36 | D14: 0.04264654551 | E14: 695212 | F14: 4771888 | G14: -2721404 | H14: 35145 | I14: 284755 | J14: 974444 | K14: 1294344 | M14: 76750 | N14: 502493 | O14: 558182 | P14: 1137425 | Q14: 465825
A15: 08201 | B15: BOONE COUNTY | C15: 83996.05 | D15: 0.00723564998 | E15: 117954 | F15: 809625 | G15: -461728 | H15: 5963 | I15: 48313 | J15: 165330 | K15: 219606 | M15: 13022 | N15: 85256 | O15: 94704 | P15: 192982 | Q15: 79034
A16: 09201 | B16: BREMER COUNTY | C16: 97052.66 | D16: 0.008360382154 | E16: 136289 | F16: 935476 | G16: -533501 | H16: 6890 | I16: 55823 | J16: 191029 | K16: 253742 | M16: 15046 | N16: 98508 | O16: 109425 | P16: 222979 | Q16: 91320
A17: 10201 | B17: BUCHANAN COUNTY | C17: 78007.33 | D17: 0.006719765225 | E17: 109544 | F17: 751901 | G17: -428808 | H17: 5538 | I17: 44869 | J17: 153542 | K17: 203949 | M17: 12093 | N17: 79177 | O17: 87952 | P17: 179222 | Q17: 73399
A18: 11201 | B18: BUENA VISTA COUNTY | C18: 94928.39 | D18: 0.008177391714 | E18: 133306 | F18: 915000 | G18: -521824 | H18: 6739 | I18: 54601 | J18: 186848 | K18: 248188 | M18: 14717 | N18: 96352 | O18: 107030 | P18: 218099 | Q18: 89321
A19: 12201 | B19: BUTLER COUNTY | C19: 71079.5 | D19: 0.006122982959 | E19: 99815 | F19: 685124 | G19: -390726 | H19: 5046 | I19: 40884 | J19: 139906 | K19: 185836 | M19: 11019 | N19: 72145 | O19: 80141 | P19: 163305 | Q19: 66881
A20: 13201 | B20: CALHOUN COUNTY | C20: 44823.94 | D20: 0.003861257054 | E20: 62945 | F20: 432051 | G20: -246398 | H20: 3182 | I20: 25782 | J20: 88227 | K20: 117191 | M20: 6949 | N20: 45496 | O20: 50538 | P20: 102983 | Q20: 42176
A21: 14201 | B21: CARROLL COUNTY | C21: 58313.14 | D21: 0.005023253716 | E21: 81888 | F21: 562071 | G21: -320549 | H21: 4140 | I21: 33541 | J21: 114778 | K21: 152459 | M21: 9040 | N21: 59188 | O21: 65747 | P21: 133975 | Q21: 54869
A22: 15201 | B22: CASS COUNTY | C22: 58137.72 | D22: 0.005008142556 | E22: 81641 | F22: 560381 | G22: -319585 | H22: 4127 | I22: 33440 | J22: 114433 | K22: 152000 | M22: 9013 | N22: 59010 | O22: 65549 | P22: 133572 | Q22: 54704
A23: 16201 | B23: CEDAR COUNTY | C23: 94388.78 | D23: 0.008130908229 | E23: 132548 | F23: 909799 | G23: -518858 | H23: 6701 | I23: 54291 | J23: 185786 | K23: 246778 | M23: 14633 | N23: 95804 | O23: 106422 | P23: 216859 | Q23: 88813
A24: 17201 | B24: CERRO GORDO COUNTY | C24: 133363.39 | D24: 0.01148828796 | E24: 187279 | F24: 1285469 | G24: -733102 | H24: 9468 | I24: 76708 | J24: 262500 | K24: 348676 | M24: 20675 | N24: 135363 | O24: 150365 | P24: 306403 | Q24: 125486
A25: 18201 | B25: CHEROKEE COUNTY | C25: 47031.59 | D25: 0.004051430076 | E25: 66045 | F25: 453330 | G25: -258534 | H25: 3339 | I25: 27052 | J25: 92572 | K25: 122963 | M25: 7291 | N25: 47737 | O25: 53027 | P25: 108055 | Q25: 44253
A26: 19201 | B26: CHICKASAW COUNTY | C26: 62582.83 | D26: 0.005391056516 | E26: 87884 | F26: 603226 | G26: -344019 | H26: 4443 | I26: 35997 | J26: 123182 | K26: 163622 | M26: 9702 | N26: 63521 | O26: 70561 | P26: 143784 | Q26: 58886
A27: 20201 | B27: CLARKE COUNTY | C27: 40203.36 | D27: 0.003463227628 | E27: 56457 | F27: 387514 | G27: -220999 | H27: 2854 | I27: 23124 | J27: 79132 | K27: 105110 | M27: 6233 | N27: 40806 | O27: 45329 | P27: 92368 | Q27: 37829
A28: 21201 | B28: CLAY COUNTY | C28: 77355.86 | D28: 0.006663645813 | E28: 108629 | F28: 745621 | G28: -425227 | H28: 5492 | I28: 44494 | J28: 152260 | K28: 202246 | M28: 11992 | N28: 78516 | O28: 87218 | P28: 177726 | Q28: 72787
A29: 22201 | B29: CLAYTON COUNTY | C29: 84507.89 | D29: 0.007279741281 | E29: 118672 | F29: 814559 | G29: -464542 | H29: 5999 | I29: 48608 | J29: 166337 | K29: 220944 | M29: 13101 | N29: 85775 | O29: 95281 | P29: 194157 | Q29: 79516
A30: 23201 | B30: CLINTON COUNTY | C30: 175330.15 | D30: 0.0151034197 | E30: 246212 | F30: 1689980 | G30: -963794 | H30: 12447 | I30: 100847 | J30: 345103 | K30: 458397 | M30: 27181 | N30: 177960 | O30: 197682 | P30: 402823 | Q30: 164974
A31: 24201 | B31: CRAWFORD COUNTY | C31: 67089.51 | D31: 0.005779274284 | E31: 94212 | F31: 646665 | G31: -368793 | H31: 4763 | I31: 38589 | J31: 132052 | K31: 175404 | M31: 10401 | N31: 68096 | O31: 75642 | P31: 154139 | Q31: 63127
A32: 25201 | B32: DALLAS COUNTY | C32: 203103.01 | D32: 0.01749584999 | E32: 285212 | F32: 1957679 | G32: -1116463 | H32: 14418 | I32: 116821 | J32: 399768 | K32: 531007 | M32: 31487 | N32: 206149 | O32: 228996 | P32: 466632 | Q32: 191106
A33: 26201 | B33: DAVIS COUNTY | C33: 36411.24 | D33: 0.003136564017 | E33: 51131 | F33: 350962 | G33: -200154 | H33: 2585 | I33: 20943 | J33: 71668 | K33: 95196 | M33: 5645 | N33: 36957 | O33: 41053 | P33: 83655 | Q33: 34260
A34: 27201 | B34: DECATUR COUNTY | C34: 34058.16 | D34: 0.002933863256 | E34: 47827 | F34: 328281 | G34: -187219 | H34: 2418 | I34: 19590 | J34: 67037 | K34: 89045 | M34: 5280 | N34: 34569 | O34: 38400 | P34: 78249 | Q34: 32046
A35: 28201 | B35: DELAWARE COUNTY | C35: 95221.03 | D35: 0.008202600525 | E35: 133717 | F35: 917821 | G35: -523432 | H35: 6760 | I35: 54770 | J35: 187424 | K35: 248954 | M35: 14762 | N35: 96649 | O35: 107360 | P35: 218771 | Q35: 89596
A36: 29201 | B36: DES MOINES COUNTY | C36: 135326.73 | D36: 0.01165741545 | E36: 190036 | F36: 1304393 | G36: -743895 | H36: 9607 | I36: 77838 | J36: 266364 | K36: 353809 | M36: 20980 | N36: 137356 | O36: 152579 | P36: 310915 | Q36: 127333
A37: 30201 | B37: DICKINSON COUNTY | C37: 66453.7 | D37: 0.005724503868 | E37: 93319 | F37: 640537 | G37: -365298 | H37: 4718 | I37: 38223 | J37: 130801 | K37: 173742 | M37: 10302 | N37: 67450 | O37: 74926 | P37: 152678 | Q37: 62528
A38: 31201 | B38: DUBUQUE COUNTY | C38: 576877.84 | D38: 0.04969383836 | E38: 810095 | F38: 5560437 | G38: -3171113 | H38: =ROUND(D38*$H$7,0)-1 -> 40952 | I38: 331810 | J38: 1135470 | K38: 1508232 | M38: =ROUND(D38*$M$7,0)+1 -> 89434 | N38: 585529 | O38: 650421 | P38: 1325384 | Q38: 542802
A39: 32201 | B39: EMMET COUNTY | C39: 48315.48 | D39: 0.00416202788 | E39: 67848 | F39: 465705 | G39: -265591 | H39: 3430 | I39: 27790 | J39: 95099 | K39: 126319 | M39: 7490 | N39: 49040 | O39: 54475 | P39: 111005 | Q39: 45462
A40: 33201 | B40: FAYETTE COUNTY | C40: 80624.65 | D40: 0.006945228343 | E40: 113219 | F40: 777129 | G40: -443196 | H40: 5724 | I40: 46374 | J40: 158694 | K40: 210792 | M40: 12499 | N40: 81834 | O40: 90903 | P40: 185236 | Q40: 75862
A41: 34201 | B41: FLOYD COUNTY | C41: 75404.82 | D41: 0.00649557788 | E41: 105889 | F41: 726815 | G41: -414502 | H41: 5353 | I41: 43372 | J41: 148420 | K41: 197145 | M41: 11690 | N41: 76536 | O41: 85018 | P41: 173244 | Q41: 70951
A42: 35201 | B42: FRANKLIN COUNTY | C42: 41618.26 | D42: 0.003585110992 | E42: 58443 | F42: 401152 | G42: -228777 | H42: 2955 | I42: 23938 | J42: 81917 | K42: 108810 | M42: 6452 | N42: 42242 | O42: 46924 | P42: 95618 | Q42: 39160
A43: 36201 | B43: FREMONT COUNTY | C43: 47820.61 | D43: 0.004119398422 | E43: 67153 | F43: 460935 | G43: -262871 | H43: 3395 | I43: 27506 | J43: 94125 | K43: 125026 | M43: 7414 | N43: 48538 | O43: 53917 | P43: 109869 | Q43: 44996
A44: 37201 | B44: GREENE COUNTY | C44: 44871.63 | D44: 0.003865365201 | E44: 63012 | F44: 432511 | G44: -246661 | H44: 3185 | I44: 25809 | J44: 88321 | K44: 117315 | M44: 6956 | N44: 45545 | O44: 50592 | P44: 103093 | Q44: 42221
A45: 38201 | B45: GRUNDY COUNTY | C45: 74622.73 | D45: 0.006428206503 | E45: 104791 | F45: 719277 | G45: -410203 | H45: 5298 | I45: 42922 | J45: 146880 | K45: 195100 | M45: 11569 | N45: 75742 | O45: 84136 | P45: 171447 | Q45: 70215
A46: 39201 | B46: GUTHRIE COUNTY | C46: 58974.25 | D46: 0.005080203544 | E46: 82816 | F46: 568444 | G46: -324183 | H46: 4187 | I46: 33921 | J46: 116079 | K46: 154187 | M46: 9143 | N46: 59859 | O46: 66493 | P46: 135495 | Q46: 55491
A47: 40201 | B47: HAMILTON COUNTY | C47: 69297.52 | D47: 0.005969478317 | E47: 97313 | F47: 667948 | G47: -380930 | H47: 4919 | I47: 39859 | J47: 136399 | K47: 181177 | M47: 10743 | N47: 70337 | O47: 78132 | P47: 159212 | Q47: 65204
A48: 41201 | B48: HANCOCK COUNTY | C48: 56969.98 | D48: 0.004907550232 | E48: 80002 | F48: 549125 | G48: -313165 | H48: 4044 | I48: 32768 | J48: 112134 | K48: 148946 | M48: 8832 | N48: 57824 | O48: 64233 | P48: 130889 | Q48: 53605
A49: 42201 | B49: HARDIN COUNTY | C49: 65579.03 | D49: 0.005649157397 | E49: 92091 | F49: 632106 | G49: -360490 | H49: 4655 | I49: 37720 | J49: 129079 | K49: 171454 | M49: 10167 | N49: 66563 | O49: 73939 | P49: 150669 | Q49: 61705
A50: 43201 | B50: HARRISON COUNTY | C50: 61889.28 | D50: 0.005331312218 | E50: 86910 | F50: 596541 | G50: -340207 | H50: 4394 | I50: 35598 | J50: 121817 | K50: 161809 | M50: 9595 | N50: 62817 | O50: 69779 | P50: 142191 | Q50: 58234
A51: 44201 | B51: HENRY COUNTY | C51: 77425.17 | D51: 0.006669616366 | E51: 108726 | F51: 746289 | G51: -425608 | H51: 5496 | I51: 44534 | J51: 152396 | K51: 202426 | M51: 12003 | N51: 78586 | O51: 87296 | P51: 177885 | Q51: 72852
A52: 45201 | B52: HOWARD COUNTY | C52: 56400.67 | D52: 0.004858508308 | E52: 79202 | F52: 543637 | G52: -310036 | H52: 4004 | I52: 32441 | J52: 111014 | K52: 147459 | M52: 8744 | N52: 57247 | O52: 63591 | P52: 129582 | Q52: 53069
A53: 46201 | B53: HUMBOLDT COUNTY | C53: 59893.49 | D53: 0.005159389397 | E53: 84107 | F53: 577304 | G53: -329236 | H53: 4252 | I53: 34450 | J53: 117889 | K53: 156591 | M53: 9285 | N53: 60792 | O53: 67529 | P53: 137606 | Q53: 56356
A54: 47201 | B54: IDA COUNTY | C54: 50128.71 | D54: 0.004318224482 | E54: 70394 | F54: 483183 | G54: -275559 | H54: 3559 | I54: 28833 | J54: 98668 | K54: 131060 | M54: 7771 | N54: 50881 | O54: 56519 | P54: 115171 | Q54: 47168
A55: 48201 | B55: IOWA COUNTY | C55: 75563.51 | D55: 0.006509247871 | E55: 106112 | F55: 728345 | G55: -415375 | H55: 5364 | I55: 43463 | J55: 148732 | K55: 197559 | M55: 11715 | N55: 76697 | O55: 85197 | P55: 173609 | Q55: 71100
A56: 49201 | B56: JACKSON COUNTY | C56: 69215.6 | D56: 0.005962421504 | E56: 97198 | F56: 667158 | G56: -380480 | H56: 4914 | I56: 39812 | J56: 136237 | K56: 180963 | M56: 10730 | N56: 70254 | O56: 78040 | P56: 159024 | Q56: 65127
A57: 50201 | B57: JASPER COUNTY | C57: 120209.79 | D57: 0.01035520081 | E57: 168808 | F57: 1158684 | G57: -660796 | H57: 8534 | I57: 69143 | J57: 236609 | K57: 314286 | M57: 18636 | N57: 122013 | O57: 135535 | P57: 276184 | Q57: 113109
A58: 51201 | B58: JEFFERSON COUNTY | C58: 70981.76 | D58: 0.006114563368 | E58: 99678 | F58: 684182 | G58: -390189 | H58: 5039 | I58: 40828 | J58: 139714 | K58: 185581 | M58: 11004 | N58: 72046 | O58: 80031 | P58: 163081 | Q58: 66789
A59: 52201 | B59: JOHNSON COUNTY | C59: 545891.6 | D59: 0.04702459871 | E59: 766582 | F59: 5261765 | G59: -3000780 | H59: 38753 | I59: 313988 | J59: 1074480 | K59: 1427221 | M59: 84630 | N59: 554078 | O59: 615484 | P59: 1254192 | Q59: 513646
A60: 53201 | B60: JONES COUNTY | C60: 69282.43 | D60: 0.005968178424 | E60: 97292 | F60: 667803 | G60: -380847 | H60: 4918 | I60: 39850 | J60: 136369 | K60: 181137 | M60: 10741 | N60: 70321 | O60: 78115 | P60: 159177 | Q60: 65190
A61: 54201 | B61: KEOKUK COUNTY | C61: 33435.3 | D61: 0.002880208388 | E61: 46952 | F61: 322278 | G61: -183795 | H61: 2374 | I61: 19231 | J61: 65811 | K61: 87416 | M61: 5183 | N61: 33937 | O61: 37698 | P61: 76818 | Q61: 31460
A62: 55201 | B62: KOSSUTH COUNTY | C62: 61140.24 | D62: 0.005266787859 | E62: 85858 | F62: 589321 | G62: -336089 | H62: 4340 | I62: 35167 | J62: 120343 | K62: 159850 | M62: 9479 | N62: 62057 | O62: 68935 | P62: 140471 | Q62: 57529
A63: 56201 | B63: LEE COUNTY | C63: 107419.99 | D63: 0.009253452377 | E63: 150847 | F63: 1035405 | G63: -590490 | H63: 7626 | I63: 61786 | J63: 211435 | K63: 280847 | M63: 16653 | N63: 109031 | O63: 121114 | P63: 246798 | Q63: 101075
A64: 57210 | B64: LINN COUNTY SHERIFF'S DEPARTMENT | C64: 1061249.37 | D64: 0.09141892962 | E64: 1490286 | F64: =ROUND(D64*$F$7,0) -> 10229219 | G64: =ROUND(D64*$G$7,0)-1 -> -5833716 | H64: =ROUND(D64*$H$7,0)-1 -> 75338 | I64: =ROUND(D64*$I$7,0)-1 -> 610412 | J64: =ROUND(D64*$J$7,0)+1 -> 2088861 | K64: 2774611 | M64: =ROUND(D64*$M$7,0)+1 -> 164526 | N64: 1077165 | O64: 1196543 | P64: 2438234 | Q64: =ROUND(D64*$Q$7,0)-1 -> 998561
A65: 58201 | B65: LOUISA COUNTY | C65: 64540.5 | D65: 0.005559695576 | E65: 90633 | F65: 622096 | G65: -354781 | H65: 4582 | I65: 37123 | J65: 127035 | K65: 168740 | M65: 10006 | N65: 65508 | O65: 72768 | P65: 148282 | Q65: 60728
A66: 59201 | B66: LUCAS COUNTY | C66: 27605.09 | D66: 0.002377978118 | E66: 38765 | F66: 266081 | G66: -151746 | H66: 1960 | I66: 15878 | J66: 54335 | K66: 72173 | M66: 4280 | N66: 28019 | O66: 31124 | P66: 63423 | Q66: 25974
A67: 60201 | B67: LYON COUNTY | C67: 81214.19 | D67: 0.006996012935 | E67: 114047 | F67: 782811 | G67: -446437 | H67: 5765 | I67: 46713 | J67: 159854 | K67: 212332 | M67: 12591 | N67: 82432 | O67: 91568 | P67: 186591 | Q67: 76417
A68: 61201 | B68: MADISON COUNTY | C68: 43953.21 | D68: 0.003786249985 | E68: 61722 | F68: 423658 | G68: -241612 | H68: 3120 | I68: 25281 | J68: 86513 | K68: 114914 | M68: 6814 | N68: 44612 | O68: 49557 | P68: 100983 | Q68: 41357
A69: 62201 | B69: MAHASKA COUNTY | C69: 59606.4 | D69: 0.005134658677 | E69: 83704 | F69: 574537 | G69: -327658 | H69: 4231 | I69: 34285 | J69: 117323 | K69: 155839 | M69: 9241 | N69: 60500 | O69: 67205 | P69: 136946 | Q69: 56085
A70: 63201 | B70: MARION COUNTY | C70: 111689.97 | D70: 0.009621280158 | E70: 156843 | F70: 1076562 | G70: -613963 | H70: 7929 | I70: 64242 | J70: 219840 | K70: 292011 | M70: 17315 | N70: 113365 | O70: 125929 | P70: 256609 | Q70: 105093
A71: 64201 | B71: MARSHALL COUNTY | C71: 132134.23 | D71: 0.01138240475 | E71: 185553 | F71: 1273621 | G71: -726345 | H71: 9380 | I71: 76001 | J71: 260080 | K71: 345461 | M71: 20485 | N71: 134116 | O71: 148979 | P71: 303580 | Q71: 124329
A72: 65201 | B72: MILLS COUNTY | C72: 70404.32 | D72: 0.006064821103 | E72: 98867 | F72: 678616 | G72: -387014 | H72: 4998 | I72: 40495 | J72: 138577 | K72: 184070 | M72: 10915 | N72: 71460 | O72: 79380 | P72: 161755 | Q72: 66246
A73: 66207 | B73: MITCHELL COUNTY SHERIFF'S DEPT | C73: 51326.43 | D73: =+C73/$C$108 -> 0.004421399366 | E73: =ROUND(D73*$E$7,0) -> 72076 | F73: =ROUND(D73*$F$7,0) -> 494728 | G73: =ROUND(D73*$G$7,0) -> -282143 | H73: =ROUND(D73*$H$7,0) -> 3644 | I73: =ROUND(D73*$I$7,0) -> 29522 | J73: =ROUND(D73*$J$7,0) -> 101026 | K73: =ROUND(SUM(H73:J73),0) -> 134192 | M73: =ROUND(D73*$M$7,0) -> 7957 | N73: =ROUND(D73*$N$7,0) -> 52096 | O73: =ROUND(D73*$O$7,0) -> 57870 | P73: =ROUND(SUM(M73:O73),0) -> 117923 | Q73: =ROUND(D73*$Q$7,0) -> 48295
A74: 67201 | B74: MONONA COUNTY | C74: 47280.21 | D74: 0.004072846885 | E74: 66394 | F74: 455727 | G74: -259901 | H74: 3356 | I74: 27195 | J74: 93062 | K74: 123613 | M74: 7330 | N74: 47989 | O74: 53308 | P74: 108627 | Q74: 44487
A75: 68201 | B75: MONROE COUNTY | C75: 29208.68 | D75: 0.002516115756 | E75: 41017 | F75: 281538 | G75: -160561 | H75: 2074 | I75: 16800 | J75: 57492 | K75: 76366 | M75: 4528 | N75: 29647 | O75: 32932 | P75: 67107 | Q75: 27483
A76: 69201 | B76: MONTGOMERY COUNTY | C76: 53652.92 | D76: 0.004621809592 | E76: 75343 | F76: 517152 | G76: -294931 | H76: 3809 | I76: 30860 | J76: 105605 | K76: 140274 | M76: 8318 | N76: 54458 | O76: 60493 | P76: 123269 | Q76: 50484
A77: 70201 | B77: MUSCATINE COUNTY | C77: 161566.45 | D77: 0.01391777686 | E77: 226884 | F77: 1557314 | G77: -888135 | H77: 11470 | I77: 92930 | J77: 318012 | K77: 422412 | M77: 25048 | N77: 163990 | O77: 182164 | P77: 371202 | Q77: 152023
A78: 71201 | B78: O'BRIEN COUNTY | C78: 64071.7 | D78: 0.005519311859 | E78: 89974 | F78: 617577 | G78: -352204 | H78: 4548 | I78: 36853 | J78: 126113 | K78: 167514 | M78: 9933 | N78: 65033 | O78: 72240 | P78: 147206 | Q78: 60287
A79: 72201 | B79: OSCEOLA COUNTY | C79: 54386.67 | D79: 0.004685016828 | E79: 76374 | F79: 524225 | G79: -298965 | H79: 3861 | I79: 31282 | J79: 107049 | K79: 142192 | M79: 8432 | N79: 55202 | O79: 61320 | P79: 124954 | Q79: 51174
A80: 73201 | B80: PAGE COUNTY | C80: 55085.33 | D80: 0.004745201315 | E80: 77355 | F80: 530959 | G80: -302805 | H80: 3911 | I80: 31684 | J80: 108425 | K80: 144020 | M80: 8540 | N80: 55911 | O80: 62108 | P80: 126559 | Q80: 51831
A81: 74201 | B81: PALO ALTO COUNTY | C81: 50427.73 | D81: 0.004343982885 | E81: 70814 | F81: 486065 | G81: -277203 | H81: 3580 | I81: 29005 | J81: 99257 | K81: 131842 | M81: 7818 | N81: 51184 | O81: 56856 | P81: 115858 | Q81: 47449
A82: 75201 | B82: PLYMOUTH COUNTY | C82: 88360.75 | D82: 0.007611637202 | E82: 124083 | F82: 851696 | G82: -485721 | H82: 6273 | I82: 50824 | J82: 173921 | K82: 231018 | M82: 13699 | N82: 89686 | O82: 99625 | P82: 203010 | Q82: 83141
A83: 76201 | B83: POCAHONTAS COUNTY | C83: 45255.33 | D83: 0.003898418171 | E83: 63551 | F83: 436209 | G83: -248770 | H83: 3213 | I83: 26030 | J83: 89076 | K83: 118319 | M83: 7016 | N83: 45934 | O83: 51025 | P83: 103975 | Q83: 42582
A84: 77209 | B84: POLK COUNTY ADMINISTRATION OFFICE BLDG | C84: 1223400.07 | D84: 0.1053870354 | E84: 1717990 | F84: =ROUND(D84*$F$7,0)+1 -> 11792166 | G84: =ROUND(D84*$G$7,0)-1 -> -6725063 | H84: =ROUND(D84*$H$7,0)-1 -> 86849 | I84: =ROUND(D84*$I$7,0)-1 -> 703678 | J84: =ROUND(D84*$J$7,0)+1 -> 2408023 | K84: 3198550 | M84: =ROUND(D84*$M$7,0)+1 -> 189665 | N84: 1241748 | O84: 1379365 | P84: 2810778 | Q84: =ROUND(D84*$Q$7,0)-1 -> 1151134
A85: 78201 | B85: POTTAWATTAMIE COUNTY | C85: 389085.62 | D85: 0.03351690179 | E85: 546383 | F85: 3750336 | G85: -2138814 | H85: 27621 | I85: 223796 | J85: 765838 | K85: 1017255 | M85: 60320 | N85: 394921 | O85: 438688 | P85: 893929 | Q85: 366103
A86: 79201 | B86: POWESHIEK COUNTY | C86: 80767.56 | D86: 0.006957539003 | E86: 113420 | F86: 778506 | G86: -443981 | H86: 5734 | I86: 46456 | J86: 158975 | K86: 211165 | M86: 12521 | N86: 81979 | O86: 91064 | P86: 185564 | Q86: 75997
A87: 80201 | B87: RINGGOLD COUNTY | C87: 35576.32 | D87: 0.00306464172 | E87: 49959 | F87: 342915 | G87: -195564 | H87: 2526 | I87: 20463 | J87: 70025 | K87: 93014 | M87: 5515 | N87: 36110 | O87: 40112 | P87: 81737 | Q87: 33475
A88: 81201 | B88: SAC COUNTY | C88: 59355.26 | D88: 0.005113024789 | E88: 83351 | F88: 572116 | G88: -326277 | H88: 4214 | I88: 34140 | J88: 116829 | K88: 155183 | M88: 9202 | N88: 60245 | O88: 66922 | P88: 136369 | Q88: 55849
A89: 82201 | B89: SCOTT COUNTY | C89: 364738.79 | D89: 0.03141959912 | E89: 512194 | F89: 3515661 | G89: -2004979 | H89: 25893 | I89: 209792 | J89: 717916 | K89: 953601 | M89: 56545 | N89: 370209 | O89: 411237 | P89: 837991 | Q89: 343194
A90: 83201 | B90: SHELBY COUNTY | C90: 56900.59 | D90: 0.004901572787 | E90: 79904 | F90: 548456 | G90: -312784 | H90: 4039 | I90: 32728 | J90: 111998 | K90: 148765 | M90: 8821 | N90: 57754 | O90: 64155 | P90: 130730 | Q90: 53540
A91: 84201 | B91: SIOUX COUNTY | C91: 102891.54 | D91: 0.008863359282 | E91: 144488 | F91: 991756 | G91: -565597 | H91: 7304 | I91: 59181 | J91: 202522 | K91: 269007 | M91: 15951 | N91: 104435 | O91: 116009 | P91: 236395 | Q91: 96814
A92: 85201 | B92: STORY COUNTY | C92: 224921.79 | D92: 0.0193753795 | E92: 315852 | F92: 2167986 | G92: -1236401 | H92: 15967 | I92: 129371 | J92: 442714 | K92: 588052 | M92: 34870 | N92: 228295 | O92: 253596 | P92: 516761 | Q92: 211636
A93: 86201 | B93: TAMA COUNTY | C93: 75822.84 | D93: 0.006531587268 | E93: 106476 | F93: 730845 | G93: -416800 | H93: 5383 | I93: 43612 | J93: 149242 | K93: 198237 | M93: 11755 | N93: 76960 | O93: 85489 | P93: 174204 | Q93: 71344
A94: 87201 | B94: TAYLOR COUNTY | C94: 47983.72 | D94: 0.004133449164 | E94: 67382 | F94: 462508 | G94: -263768 | H94: 3406 | I94: 27599 | J94: 94446 | K94: 125451 | M94: 7439 | N94: 48703 | O94: 54101 | P94: 110243 | Q94: 45149
A95: 88201 | B95: UNION COUNTY | C95: 36771.06 | D95: 0.003167559898 | E95: 51637 | F95: 354431 | G95: -202131 | H95: 2610 | I95: 21150 | J95: 72377 | K95: 96137 | M95: 5701 | N95: 37323 | O95: 41459 | P95: 84483 | Q95: 34599
A96: 89201 | B96: VAN BUREN COUNTY | C96: 36479.29 | D96: 0.00314242603 | E96: 51227 | F96: 351618 | G96: -200528 | H96: 2590 | I96: 20982 | J96: 71802 | K96: 95374 | M96: 5655 | N96: 37026 | O96: 41130 | P96: 83811 | Q96: 34324
A97: 90201 | B97: WAPELLO COUNTY | C97: 80402.46 | D97: 0.006926088288 | E97: 112907 | F97: 774987 | G97: -441974 | H97: 5708 | I97: 46246 | J97: 158256 | K97: 210210 | M97: 12465 | N97: 81608 | O97: 90653 | P97: 184726 | Q97: 75653
A98: 91201 | B98: WARREN COUNTY | C98: 154411.93 | D98: 0.01330146689 | E98: 216837 | F98: 1488353 | G98: -848806 | H98: 10962 | I98: 88815 | J98: 303929 | K98: 403706 | M98: 23938 | N98: 156728 | O98: 174097 | P98: 354763 | Q98: 145291
A99: 92201 | B99: WASHINGTON COUNTY | C99: 121961.19 | D99: 0.0105060712 | E99: 171267 | F99: 1175565 | G99: -670424 | H99: 8658 | I99: 70150 | J99: 240057 | K99: 318865 | M99: 18908 | N99: 123790 | O99: 137509 | P99: 280207 | Q99: 114757
A100: 93201 | B100: WAYNE COUNTY | C100: 42470.62 | D100: 0.003658535619 | E100: 59640 | F100: 409368 | G100: -233462 | H100: 3015 | I100: 24428 | J100: 83595 | K100: 111038 | M100: 6584 | N100: 43108 | O100: 47885 | P100: 97577 | Q100: 39962
A101: 94201 | B101: WEBSTER COUNTY | C101: 107208.7 | D101: 0.009235251277 | E101: 150550 | F101: 1033368 | G101: -589329 | H101: 7611 | I101: 61665 | J101: 211019 | K101: 280295 | M101: 16621 | N101: 108817 | O101: 120876 | P101: 246314 | Q101: 100876
A102: 95201 | B102: WINNEBAGO COUNTY | C102: 45585.28 | D102: 0.003926840969 | E102: 64014 | F102: 439389 | G102: -250583 | H102: 3236 | I102: 26220 | J102: 89726 | K102: 119182 | M102: 7067 | N102: 46269 | O102: 51397 | P102: 104733 | Q102: 42893
A103: 96201 | B103: WINNESHIEK COUNTY | C103: 79255.66 | D103: 0.006827299792 | E103: 111297 | F103: 763933 | G103: -435670 | H103: 5626 | I103: 45587 | J103: 155999 | K103: 207212 | M103: 12287 | N103: 80444 | O103: 89360 | P103: 182091 | Q103: 74574
A104: 97201 | B104: WOODBURY COUNTY | C104: 303003.2 | D104: 0.02610152618 | E104: 425500 | F104: 2920601 | G104: -1665616 | H104: 21510 | I104: 174282 | J104: 596402 | K104: 792194 | M104: 46975 | N104: 307547 | O104: 341631 | P104: 696153 | Q104: 285105
A105: 98201 | B105: WORTH COUNTY | C105: 71645.88 | D105: 0.006171772485 | E105: 100611 | F105: 690584 | G105: -393839 | H105: 5086 | I105: 41210 | J105: 141021 | K105: 187317 | M105: 11107 | N105: 72720 | O105: 80780 | P105: 164607 | Q105: 67414
A106: 99201 | B106: WRIGHT COUNTY | C106: 60578.01 | D106: 0.005218355826 | E106: 85068 | F106: 583902 | G106: -332999 | H106: 4300 | I106: 34843 | J106: 119236 | K106: 158379 | M106: 9391 | N106: 61487 | O106: 68301 | P106: 139179 | Q106: 57000
J107: =ROUND(D107*$J$7,0) -> 0
B108: Total for all entities | C108: =SUM(C8:C106) -> 11608639.2 | D108: =SUM(D8:D106) -> 1 | E108: =SUM(E8:E106) -> 16301722 | F108: =SUM(F8:F106) -> 111893883 | G108: =SUM(G8:G106) -> -63812992 | H108: =SUM(H8:H106) -> 824104 | I108: =SUM(I8:I106) -> 6677095 | J108: =SUM(J8:J107) -> 22849318 | K108: =SUM(K8:K106) -> 30350517 | M108: =SUM(M8:M106) -> 1799686 | N108: =SUM(N8:N106) -> 11782737 | O108: =SUM(O8:O106) -> 13088564 | P108: =SUM(P8:P106) -> 26670987 | Q108: =SUM(Q8:Q106) -> 10922925
C109: =+C7-C108 -> 0 | D109: =+D7-D108 -> 0 | E109: =+E7-E108 -> 0 | F109: =+F7-F108 -> 0 | G109: =+G7-G108 -> 0 | H109: =+H7-H108 -> 0 | I109: =+I7-I108 -> 0 | J109: =+J7-J108 -> 0 | K109: =+K7-K108 -> 0 | L109: =+L7-L108 -> 0 | M109: =+M7-M108 -> 0 | N109: =+N7-N108 -> 0 | O109: =+O7-O108 -> 0 | P109: =+P7-P108 -> 0 | Q109: =+Q7-Q108 -> 0
A111: * - Employer specific amounts excluded from this Schedule are the changes in proportion and differences between employer contributions and the proportionate share of contributions, as well as the related amortization as defined in paragraphs 54-55 of GASB Statement No. 68, Accounting and Financial Reporting for Pensions.
A113: ** - The proportions in this spreadsheet are for this membership group only, not the proportions to use to compute the change in entity proportion for the Pension note which is included in the Notes to Financial Statements. The Employer Calculation of Total Net Pension Liability/(Asset) and Proportion workbook, which is available on the IPERS website, details how to calculate an employer's proportion and net pension liability/(asset) to comply with GASB Statement No. 68.
